Cogmind - Beta 15 @@@ ROGUE MODE // 2025.07.15 @ 11:52:47 Player: winnking222 Result: Destroyed by 0R-SYT(R) with Subdweller Beam Cannon Performance ------------- Evolutions (0) 0 Regions Visited (2) 400 Robots Destroyed (20) 100 Value Destroyed (380) 380 Prototype IDs (2) 40 Alien Tech Used (0) 0 Bonus (0) 0 TOTAL SCORE: 920 Bonus ------- None Cogmind --------- Core Integrity 0/250 Matter 278/300 Energy 90/100 System Corruption 1% Temperature Cool (9) Movement Treading (160) Location -10/Subcaves Parts ------- > --- POWER (1) -------- (None) > --- PROPULSION (2) --- Light Treads > --- UTILITY (2) ------ Medium Storage Unit Seismic Detector > --- WEAPON (2) ------- (None) > --- INVENTORY (10) --- Subdweller Power Source Subdweller Power Source Light Treads Light Treads Light Treads Seismic Detector Seismic Detector Medium Laser Datajack Peak State ------------ > --- POWER ------------ Ion Engine > --- PROPULSION ------- Light Treads Light Treads > --- UTILITY ---------- Medium Storage Unit Seismic Detector > --- WEAPON ----------- Medium Laser Subdweller Laser > --- INVENTORY -------- Light Ion Engine Subdweller Power Source Light Treads Light Treads Light Treads Seismic Detector Seismic Detector Subdweller Machine Gun Datajack [Rating: 9] Favorites ----------- Power Ion Engine Engine Ion Engine Propulsion Light Treads Treads Light Treads Utility Seismic Detector Device Seismic Detector Storage Medium Storage Unit Weapon Medium Laser Energy Gun Medium Laser Ballistic Gun Subdweller Machine Gun Build | -11 -10 -10 ------- Run | Yrd Mat Sub Slots Evolved . | . . . Power . | . . . Propulsion . | . . . Utility . | . . . Weapon . | . . . Parts Attached 13 | 7 4 2 Power 2 | 1 . 1 Engine 2 | 1 . 1 Core . | . . . Reactor . | . . . Propulsion 4 | 2 2 . Treads 4 | 2 2 . Leg . | . . . Wheel . | . . . Hover . | . . . Flight . | . . . Utility 3 | 2 1 . Device 1 | 1 . . Storage 2 | 1 1 . Processor . | . . . Hackware . | . . . Protection . | . . . Artifact . | . . . Weapon 4 | 2 1 1 Energy Gun 3 | 2 1 . Energy Cannon . | . . . Ballistic Gun 1 | . . 1 Ballistic Cannon . | . . . Launcher . | . . . Special Weapon . | . . . Impact Weapon . | . . . Slashing Weapon . | . . . Piercing Weapon . | . . . Special Melee Weapon . | . . . Unidentified Prototypes . | . . . Parts Lost 6 | . 1 5 Power 2 | . . 2 Propulsion 1 | . . 1 Utility . | . . . Weapon 3 | . 1 2 Highest Loss Streak 5 | . 1 5 To Critical Strikes . | . . . Average Backups 5 | 2 4 9 Power 1 | . 1 2 Propulsion 1 | . . 3 Utility 1 | 1 2 2 Weapon . | . . . Tool/Special . | . . . Unused Backups 8 | . . 8 Power 2 | . . 2 Propulsion 3 | . . 3 Utility 2 | . . 2 Weapon . | . . . Tool/Special 1 | . . 1 Average Slot Usage (%) 99 | . 99 99 Engine 13 | . 14 13 Treads 28 | . 28 28 Device 14 | . 14 14 Storage 14 | . 14 14 Energy Gun 27 | . 27 27 Peak Build Rating 9 | 7 8 9 Average Rating 7 | 5 7 8 On Entrance 5 | . 7 8 Naked Turns . | . . . Heaviest Build 22 | 15 22 22 Greatest Support 40 | 40 40 40 Greatest Overweight (x) 1 | 1 . . Average Overweight (x) . | . . . Largest Inventory Capacity 10 | 8 10 10 Average Capacity 9 | 7 9 10 Most Carried 10 | 5 8 10 Average Carried 5 | 2 4 9 Final Capacity 10 | 8 10 10 Final Carried 9 | 3 8 9 Class Distribution -------------------- 100% | Mutant Dominant Class ---------------- Mutant | -10/Materials Mutant | -10/Subcaves Resources | -11 -10 -10 ----------- Run | Yrd Mat Sub Matter Collected 334 | 270 54 10 Remotely . | . . . Salvage Created 525 | 85 337 103 Parts 41 | 13 24 4 Haulers Intercepted . | . . . Recyclers Shooed . | . . . Parts Field Recycled . | . . . Retrieved Matter . | . . . Parts Self-Destructed 5 | . . 5 Prevented . | . . . Kills | -11 -10 -10 ------- Run | Yrd Mat Sub Combat Hostiles Destroyed 12 | . 10 2 Guns 12 | . 10 2 Classes Destroyed 6 | 1 5 . Tunneler 4 | 4 . . Operator 1 | . 1 . Watcher 3 | . 3 . Swarmer 6 | . 6 . Grunt 2 | . 2 . Subdweller 4 | . 2 2 Best Kill Streak 4 | 2 4 1 Combat Bots Only 3 | . 3 1 Max Kills in Single Turn 1 | 1 1 1 Gunslinging . | . . . Exploded . | . . . Melee . | . . . Uniques/NPCs Destroyed . | . . . Combat | -11 -10 -10 -------- Run | Yrd Mat Sub Hostile Shots Fired 96 | . 61 35 Missed 23 | . 17 6 Hits 73 | . 44 29 Projectile 73 | . 44 29 Critical Strikes 1 | . 1 . Damage Taken 1152 | . 517 635 Core 257 | . 160 97 Absorbed by Shields . | . . . Core Remaining (%) 100 | 100 . . Volleys Fired 86 | 8 43 35 Largest 2 | 2 2 2 Hottest 110 | 100 100 110 Shots Fired 158 | 16 78 64 Gun 158 | 16 78 64 Cannon . | . . . Launcher . | . . . Special . | . . . Kinetic 6 | . . 6 Thermal 152 | 16 78 58 Explosive . | . . . Electromagnetic . | . . . Robot Hit Streak 21 | 8 13 21 Robot Miss Streak 8 | 2 8 1 Penetration Max . | . . . Secondary Targets 1 | . 1 . Max Gunslinging Chain 1 | . 1 . Shots Hit Robots 71 | 10 41 20 Core Hits 27 | 4 19 4 Critical Kills . | . . . Critical Parts Destroyed . | . . . Critical Strikes 3 | . 3 . Burn 3 | . 3 . Melee Attacks . | . . . Impact . | . . . Slashing . | . . . Piercing . | . . . Sneak Attacks . | . . . Combat Hostiles . | . . . Follow-up Attacks . | . . . Damage Inflicted 948 | 121 524 303 Guns 948 | 121 524 303 Cannons . | . . . Explosions . | . . . Melee . | . . . Ramming . | . . . Kinetic 131 | . . 131 Thermal 817 | 121 524 172 Explosive . | . . . Electromagnetic . | . . . Impact . | . . . Slashing . | . . . Piercing . | . . . Highest Corruption 1 | . 1 1 Average Corruption 1 | . 1 1 Corruption Purged . | . . . Corruption Blocked . | . . . Effects 13 | . 6 7 Message Errors 2 | . 1 1 Matter Fused 4 | . 2 2 Data Loss (minor) 5 | . 3 2 Data Loss (major) 1 | . . 1 Alerts 1 | . . 1 Overload Shots . | . . . Overflow Damage . | . . . Projectiles . | . . . Explosions . | . . . Melee . | . . . Knockbacks . | . . . Impact . | . . . Kinetic . | . . . Secondary . | . . . Self-Inflicted Damage . | . . . Shots . | . . . Rammed . | . . . Targets Rammed . | . . . Kicked . | . . . Crushed . | . . . Highest Temperature 234 | 158 234 6 Average Temperature 61 | 55 63 3 Received Heat Transfer 318 | . 144 174 Siege Activations . | . . . Martial Activations . | . . . Shielding Activations . | . . . Robots Disrupted . | . . . Combat Hostiles . | . . . Robots Corrupted . | . . . Combat Hostiles . | . . . Parts Fried . | . . . Impact Corruptions . | . . . Robots Melted . | . . . Combat Hostiles . | . . . Parts Melted 4 | . 3 1 Heat Transferred 2444 | 370 1776 298 Parts Sabotaged . | . . . Parts Stolen . | . . . Parts Stripped . | . . . Power Chain Reactions . | . . . Alert | -11 -10 -10 ------- Run | Yrd Mat Sub Maximum Alert Level . | . . . Low Security (%) 100 | 100 100 . Level 1 . | . . . Level 2 . | . . . Level 3 . | . . . Level 4 . | . . . Level 5 . | . . . High Security . | . . . Max Security . | . . . Peak Influence 84 | 5 84 . Initial . | . . . Average 15 | 1 16 . Influence Increases 248 | 20 228 . Destroy 0b10 Robot/C 160 | . 160 . Destroy 0b10 Robot/NC 40 | 20 20 . Destroy Leader 26 | . 26 . Successful Hack 5 | . 5 . Destroy Structure 2 | . 2 . Partial Spotted 15 | . 15 . Influence Decreases 248 | 20 228 . Time Decay 244 | 20 224 . Lost Part 4 | . 4 . Squads Dispatched 1 | . 1 . Investigation . | . . . Extermination . | . . . Reinforcement 1 | . 1 . Assault . | . . . Garrison . | . . . Intercept . | . . . Searches Triggered . | . . . Construction Impeded . | . . . Haulers Reinforced . | . . . Active Scanning Responses . | . . . Cargo Convoy Interrupts . | . . . Stealth | -11 -10 -10 --------- Run | Yrd Mat Sub Distress Signals . | . . . Communications Jammed . | . . . Distress Signals . | . . . Times Spotted 18 | . 14 4 Peak Tracking Total 4 | . 4 3 Tactical Retreats . | . . . Traps | -11 -10 -10 ------- Run | Yrd Mat Sub Traps Triggered 1 | . 1 . Indirectly . | . . . Trap Hack Attempts . | . . . Triggered . | . . . Disarmed . | . . . Reprogrammed . | . . . Reused . | . . . Traps Extracted . | . . . Installed . | . . . Triggered . | . . . Machines | -11 -10 -10 ---------- Run | Yrd Mat Sub Machines Disabled . | . . . Max in Single Turn . | . . . Machines Repaired . | . . . Machines Dismantled . | . . . Machines Sabotaged . | . . . Overloaded Fab Kills . | . . . Hacking | -11 -10 -10 --------- Run | Yrd Mat Sub Machines Accessed 3 | . 3 . Terminals 3 | . 3 . Fabricators . | . . . Repair Stations . | . . . Recycling Units . | . . . Scanalyzers . | . . . Garrison Access . | . . . Total Hacks 4 | . 4 . Successful 1 | . 1 . Failed 3 | . 3 . Catastrophic . | . . . Database Lockouts . | . . . Manual . | . . . Terminals 4 | . 4 . Fabricators . | . . . Repair Stations . | . . . Recycling Units . | . . . Scanalyzers . | . . . Garrison Access . | . . . Terminal Hacks 1 | . 1 . Prototype ID Bank 1 | . 1 . Fabricator Hacks . | . . . Repair Station Hacks . | . . . Recycling Unit Hacks . | . . . Scanalyzer . | . . . Garrison Access Hacks . | . . . Unauthorized Hacks . | . . . Terminals . | . . . Fabricators . | . . . Repair Stations . | . . . Recycling Units . | . . . Scanalyzers . | . . . Garrison Access . | . . . Data Cores Recovered 1 | . 1 . Used 1 | . 1 . Hacking Detections 2 | . 2 . Full Trace Events . | . . . Feedback Events . | . . . Feedback Blocked . | . . . Robot Schematics Acquired . | . . . Robots Built . | . . . Authchips . | . . . Time . | . . . Total Robot Build Rating . | . . . Part Schematics Acquired . | . . . Parts Built . | . . . Authchips . | . . . Time . | . . . Total Part Build Rating . | . . . Parts Repaired . | . . . Time . | . . . Parts Recycled . | . . . Recycled Matter . | . . . Retrieved Matter . | . . . Retrieved Components . | . . . Parts Scanalyzed . | . . . Part Schematics Acquired . | . . . Parts Damaged . | . . . Bothacking | -11 -10 -10 ------------ Run | Yrd Mat Sub Used RIF Installer . | . . . Robots Hacked . | . . . Non-combat . | . . . Combat . | . . . Robot Hacks Applied . | . . . Relay Couplers Released . | . . . Fabnet Peak Effective % . | . . . Robots Rewired . | . . . Allies Hacked . | . . . Hacks Repelled . | . . . Allies | -11 -10 -10 -------- Run | Yrd Mat Sub Total Allies . | . . . Largest Group . | . . . Highest-Rated Group . | . . . Highest-Rated Ally . | . . . Total Orders . | . . . Ally Attacks . | . . . Total Damage . | . . . Kills . | . . . Allies Corrupted . | . . . Allies Melted . | . . . Intel | -11 -10 -10 ------- Run | Yrd Mat Sub Active Infowar (turns) 1695 | 15 1181 499 Seismic 1695 | 15 1181 499 Robot Analysis Total . | . . . Derelict Logs Recovered . | . . . Drone Launches . | . . . Drone Recoveries . | . . . Exploration | -11 -10 -10 ------------- Run | Yrd Mat Sub Turns Passed 1828 | 148 1181 499 Spaces Moved 866 | 80 591 195 Core 18 | 18 . . Treads 848 | 62 591 195 Legs . | . . . Wheels . | . . . Hover . | . . . Flight . | . . . Fastest Speed 50 | 50 160 160 Average Speed 157 | 136 160 160 Slowest Speed 160 | 160 160 160 Overloaded Moves . | . . . Propulsion Burnouts . | . . . Robots Hopped . | . . . Potential Cave-ins . | . . . Cave-ins Triggered . | . . . Exploration Rate (%) 35 | 4 87 14 Regions Visited 2 Branch Regions 1 Pre-discovered Areas . | . . . Known Exits Taken . | . . . Unknown Exits Taken 2 | 1 1 . Scrap Searched . | . . . Spaces Dug . | . . . Terrain Destroyed . | . . . Melee . | . . . Projectile . | . . . AOE . | . . . Terrain Rammed . | . . . Walls Destroyed . | . . . Machines Disabled . | . . . Actions | -11 -10 -10 --------- Run | Yrd Mat Sub Total 1169 | 102 749 318 Wait 183 | . 100 83 Move 864 | 79 590 195 Hop . | . . . Pick Up 19 | 8 9 2 Fast Attach 2 | 2 . . Attach 7 | 5 1 1 Detach . | . . . Swap 5 | . 3 2 Drop 3 | . 3 . Fire 86 | 8 43 35 Melee . | . . . Ram . | . . . Kick . | . . . Crush . | . . . Escape Stasis . | . . . Rewire . | . . . Trap . | . . . Miscellaneous . | . . . Route ------- -11/Scrapyard -10/Materials (discovered 5 exits: [*Mat x3] / [*Min] / [*Sub]) -10/Subcaves History --------- Turn | Location | Event 6 | -11/Scrapyard | Discovered new exit (range 15) 149 | -11/Scrapyard | Entered Materials 307 | -10/Materials | Build established: Mutant 470 | -10/Materials | Discovered new exit (range 11) 513 | -10/Materials | Discovered new exit (range 5) 622 | -10/Materials | Discovered new exit (range 7) 659 | -10/Materials | Discovered new exit (range 16) 864 | -10/Materials | Discovered new exit (range 16) 949 | -10/Materials | Derelicts attacked the area 1100 | -10/Materials | Core integrity fell below 50% 1330 | -10/Materials | Entered Subcaves 1747 | -10/Subcaves | Shifting Twisted Machinery released Sub. Monowheel 1790 | -10/Subcaves | A Subdweller sparked back to life 1790 | -10/Subcaves | A Subdweller sparked back to life 1790 | -10/Subcaves | A Subdweller sparked back to life 1807 | -10/Subcaves | Core integrity fell below 20% 1829 | -10/Subcaves | Destroyed by 0R-SYT(R) with Subdweller Beam Cannon Last Messages --------------- 01544_ JN-7FE(u) builds Twisted Machinery. 01567_ A7-IH5(u) tweaks Twisted Machinery. 01584_ A7-IH5(u) builds Twisted Machinery. 01624_ System corrupted: Substantial component data lost. 01657_ System corrupted: Component data lost. 01683_ NLTYML|IIZBTS| GVEMP%ZL8 01717_ Acquired 5 matter. Sub. Monowheel falls loose from the Twisted Machinery. 01749_ System corrupted: IFF burst signal emitted. 01765_ System corrupted: Component data lost. 01790_ 8J-518(R) creaks and sparks as it begins to move. 01790_ SI-JZD(R) creaks and sparks as it begins to move. 01790_ 0R-SYT(R) creaks and sparks as it begins to move. 01796_ Ion Engine destroyed. 01796_ 8J-518(R) destroyed. 01808_ Subatomizers dissect the Sub. Laser. 01814_ Sub. Laser destroyed. 01822_ Lgt. Treads destroyed. 01823_ Lgt. Ion Engine destroyed. 01829_ Sub. Machine Gun destroyed. Map ----- +----------------------------------------------------+ | ????????????????????????????????## ## | | ????????????????????????????????# ?### | | ????????????????????????????????# ???## | | ???????????????????????????????## #???# | | ?????????????????????#?? ?????# #### | | ?????????????????????#"?" ????# ## | | ?????????????????????? """ ????# | | ??????????????????????# " "??## ## | | ?????????????????????## "?#### ##### | | ?????????????????????# ###"#### #??? | | ??????????????????????? "##"" #?# ##?? | | ????????????????????????# "#?# ### #?? | | ???????????????????????## "### "# #?? | | ????????????????????##?# """ ##?? | | ???????????????????## ## "#=""""" " #?? | | ???????????????????# " # """ #######?? | | ???????????????????## #"" ### ##???????? | | ????????????????????# ##"" ######????????? | | ???????????????????## """" ##????????????? | | ???????????????????# """"" ##???????????? | | ??????????????????## """""" ##??????????? | | ??????????????????# "" ###????????? | | ??????????????????# " #????????? | | ??????????????????## #????????? | | ??????????????###### "" #####????????? | | ??????????????# @#" & #???????????? | | ??????????????## R #???????????? | | ???????????????# R #???????????? | | ???????????????# # [% " #???????????? | | ???????????????# ### ######???????????? | | ???????????????# ##?## #????????????????? | | ???????????????##????# #????????????????? | | ?????????????????????# #????????????????? | | ?????????????????????# #????????????????? | | ????????????????????? ????????????????? | | ????????????????????? ???????????????? | | ????????????????????? ???????????????? | | ?????????????????????# ??????????????? | | ?????????????????????? ??#?????????????? | | ?????????????????????????????????????????? | | ?????????????????????????????????????????? | | ?????????????????????????????????????????? | | ?????????????????????????????????????????? | | ?????????????????????????????????????????? | | ?????????????????????????????????????????? | | ?????????????????????????????????????????? | | ?????????????????????????????????????????? | | ?????????????????????????????????????????? | | ?????????????????????????????????????????? | | ?????????????????????????????????????????? | +----------------------------------------------------+ Best States ------------- Heat Dissipation 25 Energy Generation 10 Energy Capacity 250 Matter Stores 300 Matter Capacity 300 Sight Range 16 Terrain Scan Density 10 Evasion (%) 50 Recoil Reduction 2 Item Schematics ----------------- None Robot Schematics ------------------ None Fabricated ------------ Nothing Repaired ---------- Nothing Alien Tech Used ----------------- None Achievements -------------- None Challenges ------------ None Game ------ Seed SignalEnhancedStripper Manual? 0 Play Time 00:09:53 Cumulative 92.8 hours Start 2025.07.15 @ 11:45:04 End 2025.07.15 @ 11:52:47 Sessions 1 Manual Loads 0 Difficulty Rogue Special Mode None Game No. 152 Rogue 152 Adventurer 0 Explorer 0 Win Type - Total 1 Types 1/0/0/0/0/0/0/0/0/0 Lore% 62 Gallery% 51 Achievement% 46 Wizard Run 0 Options --------- Layout 0 ASCII 0 Keyboard 0 Movement Mouse Keybinds 0 Fullscreen 1 Font 16/SmallcapsGlow Map View 75x55 Zoom Use 0% Tactical HUD 1 Map Filters NONE Filters NONE Steam 1 RUN: f5e7225c-543c-4fd1-88da-1c568f08c566